fUST/lending_fUST_20240820
["ID","MTS","AMOUNT","RATE_DAILY","PERIOD"]
[335333768,1724119842252,-504.13761243,0.00016438,2]
[335333769,1724119842261,-501.47893288,0.00016438,2]
[335333770,1724119842271,-593.06032037,0.00016438,2]
[335333771,1724119842281,-500.0,0.00016438,2]
[335333772,1724119842291,-506.51141116,0.00016438,2]
[335333773,1724119842300,-507.72727504,0.00016438,2]
[335333774,1724119842310,-500.0,0.00016438,2]
[335333775,1724119842320,-509.94578498,0.00016438,2]
[335333776,1724119842329,-509.02611167,0.00016438,2]
[335333777,1724119842339,-500.0,0.00016438,2]
[335333778,1724119842349,-513.52877163,0.00016438,2]
[335333779,1724119842359,-504.01243819,0.00016438,2]
[335333780,1724119842368,-508.8287227,0.00016438,2]
[335333781,1724119842378,-518.19915709,0.00016438,2]
[335333782,1724119842388,-504.03964716,0.00016438,2]
[335333783,1724119842397,-506.82329314,0.00016438,2]
[335333784,1724119842406,-528.67708808,0.00016438,2]
[335333785,1724119842416,-505.56050901,0.00016438,2]
[335333786,1724119842426,-500.0,0.00016438,2]
[335333787,1724119842436,-506.57827969,0.00016438,2]
[335333788,1724119842446,-511.57510937,0.00016438,2]
[335333789,1724119842455,-505.37949982,0.00016438,2]
[335333790,1724119842465,-203.94768166,0.00016438,2]
[335333791,1724119842476,-504.3467786,0.00016438,2]
[335333792,1724119842486,-2005.0,0.00016438,10]
[335333793,1724119842496,-501.83754035,0.00016438,2]
[335333794,1724119842506,-508.69725675,0.00016438,2]
[335333795,1724119842515,-506.20790688,0.00016438,2]
[335333796,1724119842524,-509.11852246,0.00016438,2]
[335333797,1724119842533,-502.02837971,0.00016438,2]
[335333799,1724119842542,-189.89223885,0.00016438,2]
[335333801,1724119842552,-521.73678138,0.00016438,2]
[335333803,1724119842561,-505.78465921,0.00016438,2]
[335333804,1724119842570,-503.65840055,0.00016438,2]
[335333806,1724119842580,-527.02660557,0.00016438,2]
[335333807,1724119842591,-503.80512374,0.00016438,2]
[335333808,1724119842601,-517.70711649,0.00016438,2]
[335333809,1724119842611,-506.79329664,0.00016438,2]
[335333810,1724119842621,-506.6039864,0.00016438,2]
[335333811,1724119842631,-504.97337753,0.00016438,2]
[335333812,1724119842643,-500.96737233,0.00016438,2]
[335333813,1724119842653,-503.65565133,0.00016438,2]
[335333814,1724119842662,-501.37109774,0.00016438,2]
[335333815,1724119842671,-505.25509018,0.00016438,2]
[335333816,1724119842681,-500.0,0.00016438,2]
[335333817,1724119842691,-500.0,0.00016438,2]
[335333818,1724119842701,-500.0,0.00016438,2]
[335333819,1724119842710,-512.22303326,0.00016438,2]
[335333820,1724119842720,-500.0,0.00016438,2]
[335333821,1724119842730,-500.0,0.00016438,2]
[335333822,1724119842739,-500.0,0.00016438,2]
[335333824,1724119842749,-513.89433769,0.00016438,2]
[335333826,1724119842759,-500.0,0.00016438,2]
[335333828,1724119842768,-504.27669936,0.00016438,2]
[335333830,1724119842777,-500.0,0.00016438,2]
[335333832,1724119842787,-500.0,0.00016438,2]
[335333834,1724119842799,-500.0,0.00016438,2]
[335333836,1724119842811,-500.0,0.00016438,2]
[335333838,1724119842821,-492.83835176,0.00016438,2]
[335333840,1724119842832,-500.0,0.00016438,2]
[335333842,1724119842843,-500.0,0.00016438,2]
[335333843,1724119842853,-1007.01,0.00016438,2]
[335333844,1724119842863,-509.8751747,0.00016438,2]
[335333845,1724119842874,-500.0,0.00016438,2]
[335333846,1724119842884,-508.13774387,0.00016438,2]
[335333847,1724119842895,-502.58066574,0.00016438,2]
[335333849,1724119842904,-503.96328821,0.00016438,2]
[335333851,1724119842915,-503.51181384,0.00016438,2]
[335333853,1724119842925,-507.29814769,0.00016438,2]
[335333855,1724119842935,-500.0,0.00016438,2]
[335333857,1724119842946,-503.33604521,0.00016438,2]
[335333860,1724119842963,-501.83273024,0.00016438,2]
[335333862,1724119842974,-500.0,0.00016438,2]
[335333864,1724119842984,-505.03545993,0.00016438,2]
[335333865,1724119842994,-505.86544478,0.00016438,2]
[335333866,1724119843005,-503.62898232,0.00016438,2]
[335333867,1724119843015,-512.30089951,0.00016438,2]
[335333868,1724119843027,-502.45735082,0.00016438,2]
[335333869,1724119843037,-500.0,0.00016438,2]
[335333870,1724119843046,-500.0,0.00016438,2]
[335333871,1724119843056,-500.0,0.00016438,2]
[335333872,1724119843065,-502.6666143,0.00016438,2]
[335333873,1724119843075,-507.00026044,0.00016438,2]
[335333874,1724119843084,-516.5020625,0.00016438,2]
[335333875,1724119843094,-503.56559324,0.00016438,2]
[335333876,1724119843103,-500.98672507,0.00016438,2]
[335333877,1724119843113,-500.9631803,0.00016438,2]
[335333878,1724119843124,-692.51,0.00016438,2]
[335333879,1724119843133,-500.0,0.00016438,2]
[335333880,1724119843143,-786.94,0.00016438,2]
[335333881,1724119843152,-501.97462119,0.00016438,2]
[335333882,1724119843161,-530.90045012,0.00016438,2]
[335333883,1724119843171,-503.18907677,0.00016438,2]
[335333884,1724119843180,-503.58228305,0.00016438,2]
[335333885,1724119843190,-500.0,0.00016438,2]
[335333886,1724119843199,-500.0,0.00016438,2]
[335333887,1724119843209,-500.0,0.00016438,2]
[335333888,1724119843219,-500.0,0.00016438,2]
[335333889,1724119843232,-500.0,0.00016438,2]
[335333890,1724119843242,-500.0,0.00016438,2]
[335333891,1724119843252,-500.0,0.00016438,2]
[335333892,1724119843261,-500.0,0.00016438,2]
[335333893,1724119843270,-500.0,0.00016438,2]
[335333894,1724119843280,-500.0,0.00016438,2]
[335333895,1724119843290,-500.0,0.00016438,2]
[335333896,1724119843299,-500.0,0.00016438,2]
[335333897,1724119843309,-500.0,0.00016438,2]
[335333898,1724119843318,-500.0,0.00016438,2]
[335333899,1724119843328,-500.0,0.00016438,2]
[335333900,1724119843337,-507.64655867,0.00016438,2]
[335333901,1724119843346,-510.49795534,0.00016438,2]
[335333902,1724119843356,-502.04518582,0.00016438,2]
[335333903,1724119843366,-505.58643452,0.00016438,2]
[335333904,1724119843375,-530.84369394,0.00016438,2]
[335333905,1724119843384,-505.91622374,0.00016438,2]
[335333906,1724119843394,-503.30289728,0.00016438,2]
[335333907,1724119843404,-505.55852809,0.00016438,2]
[335333908,1724119843413,-507.05530557,0.00016438,2]
[335333909,1724119843422,-509.70400892,0.00016438,2]
[335333910,1724119843432,-500.0,0.00016438,2]
[335333911,1724119843442,-505.50113124,0.00016438,2]
[335333912,1724119843451,-502.79483169,0.00016438,2]
[335333913,1724119843461,-506.75935001,0.00016438,2]
[335333914,1724119843470,-503.76931592,0.00016438,2]
[335333915,1724119843480,-504.31810645,0.00016438,2]
[335333916,1724119843490,-503.25533081,0.00016438,2]
[335333917,1724119843499,-509.3401401,0.00016438,2]
[335333918,1724119843509,-504.44859994,0.00016438,2]
[335333919,1724119843519,-500.0,0.00016438,2]
[335333920,1724119843529,-500.0,0.00016438,2]
[335333921,1724119843538,-500.0,0.00016438,2]
[335333922,1724119843548,-497.81328502,0.00016438,2]
[335333923,1724119843558,-501.69090703,0.00016438,2]
[335333925,1724119843567,-503.54449928,0.00016438,2]
[335333927,1724119843577,-501.6430387,0.00016438,2]
[335333929,1724119843587,-500.0,0.00016438,2]
[335333932,1724119843596,-554.57895789,0.00016438,2]
[335333936,1724119843606,-503.06181632,0.00016438,2]
[335333937,1724119843616,-504.54735381,0.00016438,2]
[335333939,1724119843626,-500.0,0.00016438,2]
[335333941,1724119843636,-500.0,0.00016438,2]
[335333943,1724119843646,-504.34829332,0.00016438,2]
[335333946,1724119843655,-507.616974,0.00016438,2]
[335333947,1724119843664,-500.0,0.00016438,2]
[335333949,1724119843674,-500.0,0.00016438,2]
[335333951,1724119843684,-580.2306903,0.00016438,2]
[335333953,1724119843694,-503.27008819,0.00016438,2]
[335333955,1724119843703,-509.51740179,0.00016438,2]
[335333957,1724119843714,-507.3705587,0.00016438,2]
[335333958,1724119843724,-500.0,0.00016438,2]
[335333959,1724119843734,-209.86912806,0.00016438,2]
[335333960,1724119843743,-499.65774743,0.00016438,2]
[335333962,1724119843752,-507.00783618,0.00016438,2]
[335333963,1724119843762,-500.0,0.00016438,2]
[335333964,1724119843771,-505.13997833,0.00016438,2]
[335333965,1724119843781,-528.78306581,0.00016438,2]
[335333967,1724119843790,-502.67785879,0.00016438,2]
[335333969,1724119843799,-505.43085597,0.00016438,2]
[335333971,1724119843809,-442.06704651,0.00016438,2]
[335333973,1724119843818,-503.47722121,0.00016438,2]
[335333975,1724119843828,-505.10556489,0.00016438,2]
[335333977,1724119843838,-502.10379235,0.00016438,2]
[335333980,1724119843847,-501.32968299,0.00016438,2]
[335333981,1724119843857,-504.0261039,0.00016438,2]
[335333984,1724119843867,-572.35007661,0.00016438,2]
[335333986,1724119843877,-500.0,0.00016438,2]
[335333988,1724119843887,-544.57365648,0.00016438,2]
[335333990,1724119843896,-501.60319981,0.00016438,2]
[335333992,1724119843906,-500.0,0.00016438,2]
[335333994,1724119843917,-505.0225732,0.00016438,2]
[335333996,1724119843927,-504.02818564,0.00016438,2]
[335333998,1724119843937,-517.36750319,0.00016438,2]
[335334000,1724119843949,-502.68182668,0.00016438,2]
[335334002,1724119843964,-503.77228269,0.00016438,2]
[335334005,1724119843976,-501.27584992,0.00016438,2]
[335334007,1724119843988,-501.84685519,0.00016438,2]
[335334009,1724119843999,-500.0,0.00016438,2]
[335334011,1724119844010,-500.0,0.00016438,2]
[335334013,1724119844022,-500.0,0.00016438,2]
[335334016,1724119844035,-500.36598369,0.00016438,2]
[335334018,1724119844046,-501.97523879,0.00016438,2]
[335334020,1724119844057,-504.78403542,0.00016438,2]
[335334022,1724119844066,-511.85767266,0.00016438,2]
[335334024,1724119844076,-502.07168665,0.00016438,2]
[335334026,1724119844086,-501.33387722,0.00016438,2]
[335334028,1724119844095,-506.54609296,0.00016438,2]
[335334030,1724119844106,-2265.92,0.00016438,2]
[335334033,1724119844117,-528.15149569,0.00016438,2]
[335334035,1724119844127,-500.49062634,0.00016438,2]
[335334037,1724119844138,-501.3616432,0.00016438,2]
[335334039,1724119844147,-506.20667889,0.00016438,2]
[335334041,1724119844158,-550.96298902,0.00016438,2]
[335334043,1724119844168,-502.5466962,0.00016438,2]
[335334045,1724119844177,-308.48147675,0.00016438,2]
[335334047,1724119844189,-286.24501371,0.00016438,2]
[335334049,1724119844199,-501.80836736,0.00016438,2]
[335334052,1724119844211,-506.09688639,0.00016438,2]
[335334054,1724119844221,-500.0,0.00016438,2]
[335334056,1724119844233,-505.08618671,0.00016438,2]
[335334058,1724119844242,-501.41552587,0.00016438,2]
[335334060,1724119844251,-506.43279545,0.00016438,2]
[335334062,1724119844261,-502.57404653,0.00016438,2]
[335334064,1724119844272,-500.0,0.00016438,2]
[335334066,1724119844282,-504.92445021,0.00016438,2]
[335334068,1724119844293,-504.11979976,0.00016438,2]
[335334070,1724119844304,-504.68907591,0.00016438,2]
[335334072,1724119844314,-500.54191971,0.00016438,2]
[335334075,1724119844325,-504.16370679,0.00016438,2]
[335334077,1724119844334,-502.12064335,0.00016438,2]
[335334079,1724119844346,-504.71875675,0.00016438,2]
[335334081,1724119844356,-502.86679162,0.00016438,2]
[335334083,1724119844368,-585.44934859,0.00016438,2]
[335334085,1724119844378,-159.37516833,0.00016438,2]
[335334087,1724119844389,-503.45825132,0.00016438,2]
[335334089,1724119844399,-500.0,0.00016438,2]
[335334092,1724119844409,-502.48332102,0.00016438,2]
[335334094,1724119844419,-504.41456528,0.00016438,2]
[335334096,1724119844430,-504.15095778,0.00016438,2]
[335334098,1724119844441,-535.5807362,0.00016438,2]
[335334100,1724119844451,-528.26377768,0.00016438,2]
[335334102,1724119844461,-501.33869152,0.00016438,2]
[335334104,1724119844470,-504.27241206,0.00016438,2]
[335334106,1724119844481,-500.0,0.00016438,2]
[335334108,1724119844491,-500.0,0.00016438,2]
[335334110,1724119844503,-500.0,0.00016438,2]
[335334112,1724119844514,-502.40948368,0.00016438,2]
[335334114,1724119844523,-501.44165099,0.00016438,2]
[335334116,1724119844533,-505.77391649,0.00016438,2]
[335334118,1724119844543,-501.44984836,0.00016438,2]
[335334120,1724119844555,-501.67889491,0.00016438,2]
[335334123,1724119844566,-501.28701928,0.00016438,2]
[335334125,1724119844577,-510.64423169,0.00016438,2]
[335334127,1724119844587,-506.20268076,0.00016438,2]
[335334129,1724119844599,-500.0,0.00016438,2]
[335334131,1724119844610,-508.36521494,0.00016438,2]
[335334133,1724119844621,-504.68778114,0.00016438,2]
[335334136,1724119844632,-500.0,0.00016438,2]
[335334138,1724119844643,-505.87355856,0.00016438,2]
[335334140,1724119844653,-506.35552313,0.00016438,2]
[335334142,1724119844664,-502.58482977,0.00016438,2]
[335334144,1724119844674,-501.90926026,0.00016438,2]
[335334146,1724119844683,-516.57277902,0.00016438,2]
[335334148,1724119844693,-502.8579633,0.00016438,2]
[335334150,1724119844705,-835.23,0.00016438,2]
[335334152,1724119844714,-500.0,0.00016438,2]
[335334154,1724119844724,-500.0,0.00016438,2]
[335334156,1724119844734,-500.0,0.00016438,2]
[335334158,1724119844744,-500.0,0.00016438,2]
[335334160,1724119844754,-500.0,0.00016438,2]
[335334162,1724119844764,-500.0,0.00016438,2]
[335334165,1724119844774,-395.56669163,0.00016438,2]
[335334167,1724119844783,-500.0,0.00016438,2]
[335334169,1724119844792,-500.0,0.00016438,2]
[335334170,1724119844802,-500.0,0.00016438,2]
[335334173,1724119844812,-1172.55,0.00016438,2]
[335334174,1724119844821,-500.0,0.00016438,2]
[335334177,1724119844832,-500.0,0.00016438,2]
[335334179,1724119844842,-503.68064555,0.00016438,2]
[335334181,1724119844853,-500.0,0.00016438,2]
[335334183,1724119844864,-500.0,0.00016438,2]
[335334185,1724119844875,-500.0,0.00016438,2]
[335334187,1724119844886,-588.15161881,0.00016438,2]
[335334190,1724119844896,-502.24175568,0.00016438,2]
[335334192,1724119844908,-506.16607916,0.00016438,2]
[335334194,1724119844920,-506.02925083,0.00016438,2]
[335334196,1724119844930,-2565.05,0.00016438,2]
[335334198,1724119844941,-502.71431559,0.00016438,2]
[335334200,1724119844952,-507.84409123,0.00016438,2]
[335334202,1724119844963,-483.43006335,0.00016438,2]
[335334204,1724119844972,-502.15218882,0.00016438,2]
[335334206,1724119844989,-507.79073065,0.00016438,2]
[335334208,1724119845000,-503.28137629,0.00016438,2]
[335334210,1724119845010,-500.0,0.00016438,2]
[335334213,1724119845020,-518.31579061,0.00016438,2]
[335334215,1724119845033,-503.51441444,0.00016438,2]
[335334217,1724119845043,-500.0,0.00016438,2]
[335334219,1724119845053,-1036.34,0.00016438,2]
[335334221,1724119845063,-500.67459997,0.00016438,2]
[335334223,1724119845072,-500.0,0.00016438,2]
[335334225,1724119845082,-613.32689988,0.00016438,2]
[335334227,1724119845091,-507.26650594,0.00016438,2]
[335334229,1724119845101,-501.89892509,0.00016438,2]
[335334231,1724119845110,-500.0,0.00016438,2]
[335334233,1724119845120,-501.92761246,0.00016438,2]
[335334235,1724119845134,-508.60962245,0.00016438,2]
[335334237,1724119845145,-566.2615893,0.00016438,2]
[335334239,1724119845154,-547.40105573,0.00016438,2]
[335334241,1724119845164,-504.43743477,0.00016438,2]
[335334243,1724119845174,-503.08874414,0.00016438,2]
[335334245,1724119845183,-517.75746955,0.00016438,2]
[335334247,1724119845194,-993.75,0.00016438,2]
[335334249,1724119845203,-507.03253315,0.00016438,2]
[335334266,1724119845347,-500.0,0.00016438,2]
[335334268,1724119845357,-501.16465177,0.00016438,2]
[335334270,1724119845366,-502.98673864,0.00016438,2]
[335334272,1724119845376,-505.27324838,0.00016438,2]
[335334274,1724119845386,-206.03842177,0.00016438,2]
[335334276,1724119845397,-502.31853327,0.00016438,2]
[335334278,1724119845409,-502.22078375,0.00016438,2]
[335334280,1724119845420,-500.0,0.00016438,2]
[335334282,1724119845430,-503.17513943,0.00016438,2]
[335334284,1724119845440,-1225.29,0.00016438,2]
[335334286,1724119845450,-534.77768406,0.00016438,2]
[335334289,1724119845460,-503.98871958,0.00016438,2]
[335334291,1724119845471,-503.67518267,0.00016438,2]
[335334293,1724119845482,-500.0,0.00016438,2]
[335334295,1724119845492,-500.0,0.00016438,2]
[335334297,1724119845501,-511.64425358,0.00016438,2]
[335334299,1724119845510,-500.0,0.00016438,2]
[335334301,1724119845519,-511.61321075,0.00016438,2]
[335334303,1724119845528,-506.31424299,0.00016438,2]
[335334305,1724119845538,-504.3619416,0.00016438,2]
[335334307,1724119845547,-500.0,0.00016438,2]
[335334309,1724119845558,-500.0,0.00016438,2]
[335334311,1724119845567,-500.0,0.00016438,2]
[335334313,1724119845578,-500.0,0.00016438,2]
[335334315,1724119845589,-500.0,0.00016438,2]
[335334317,1724119845599,-500.0,0.00016438,2]
[335334319,1724119845609,-500.0,0.00016438,2]
[335334321,1724119845621,-500.0,0.00016438,2]
[335334323,1724119845631,-500.0,0.00016438,2]
[335334325,1724119845641,-500.0,0.00016438,2]
[335334328,1724119845651,-389.51866418,0.00016438,2]
[335334331,1724119845661,-539.07605786,0.00016438,2]
[335334334,1724119845670,-610.46,0.00016438,2]
[335334337,1724119845679,-500.0,0.00016438,2]
[335334340,1724119845688,-537.96894705,0.00016438,2]
[335334343,1724119845698,-502.36428123,0.00016438,2]
[335334346,1724119845708,-3084.17,0.00016438,2]
[335334348,1724119845717,-500.0,0.00016438,2]
[335334350,1724119845727,-500.0,0.00016438,2]
[335334352,1724119845736,-302.36856451,0.00016438,2]
[335334354,1724119845746,-500.0,0.00016438,2]
[335334356,1724119845755,-504.93675072,0.00016438,2]
[335334358,1724119845764,-477.96147632,0.00016438,2]
[335334360,1724119845774,-500.0,0.00016438,2]
[335334362,1724119845784,-500.0,0.00016438,2]
[335334364,1724119845793,-500.94613166,0.00016438,2]
[335334366,1724119845803,-500.0,0.00016438,2]
[335334368,1724119845813,-500.0,0.00016438,2]
[335334370,1724119845822,-500.0,0.00016438,2]
[335334373,1724119845833,-500.0,0.00016438,2]
[335334374,1724119845842,-501.24069336,0.00016438,2]
[335334376,1724119845852,-543.37234261,0.00016438,2]
[335334379,1724119845861,-500.0,0.00016438,2]
[335334381,1724119845871,-500.0,0.00016438,2]
[335334383,1724119845882,-500.0,0.00016438,2]
[335334384,1724119845891,-500.0,0.00016438,2]
[335334386,1724119845901,-503.12913228,0.00016438,2]
[335334388,1724119845910,-698.74,0.00016438,2]
[335334390,1724119845920,-500.0,0.00016438,2]
[335334392,1724119845929,-501.59166715,0.00016438,2]
[335334395,1724119845939,-520.75865901,0.00016438,2]
[335334397,1724119845949,-519.26554519,0.00016438,2]
[335334399,1724119845963,-455.89705127,0.00016438,2]
[335334401,1724119845972,-500.0,0.00016438,2]
[335334403,1724119845983,-509.16264996,0.00016438,2]
[335334405,1724119845992,-500.0,0.00016438,2]
[335334407,1724119846002,-503.18572101,0.00016438,2]
[335334409,1724119846012,-500.0,0.00016438,2]
[335334411,1724119846021,-529.50646732,0.00016438,2]
[335334413,1724119846034,-500.0,0.00016438,2]
[335334415,1724119846046,-500.0,0.00016438,2]
[335334417,1724119846057,-500.0,0.00016438,2]
[335334420,1724119846067,-502.90646566,0.00016438,2]
[335334422,1724119846078,-501.4560407,0.00016438,2]
[335334424,1724119846088,-500.0,0.00016438,2]
[335334426,1724119846097,-502.1360449,0.00016438,2]
[335334428,1724119846106,-514.70950679,0.00016438,2]
[335334430,1724119846115,-500.0,0.00016438,2]
[335334432,1724119846125,-521.59163149,0.00016438,2]
[335334434,1724119846134,-500.0,0.00016438,2]
[335334436,1724119846144,-500.0,0.00016438,2]
[335334438,1724119846153,-500.0,0.00016438,2]
[335334440,1724119846164,-500.0,0.00016438,2]
[335334442,1724119846174,-500.83857818,0.00016438,2]
[335334445,1724119846185,-500.0,0.00016438,2]
[335334447,1724119846194,-502.86915868,0.00016438,2]
[335334449,1724119846203,-501.2005369,0.00016438,2]
[335334451,1724119846212,-500.0,0.00016438,2]
[335334453,1724119846222,-500.0,0.00016438,2]
[335334455,1724119846232,-504.01701245,0.00016438,2]
[335334457,1724119846240,-500.0,0.00016438,2]
[335334459,1724119846250,-501.52692164,0.00016438,2]
[335334461,1724119846260,-500.0,0.00016438,2]
[335334463,1724119846269,-504.52762174,0.00016438,2]
[335334465,1724119846279,-502.21927668,0.00016438,2]
[335334467,1724119846288,-510.01373803,0.00016438,2]
[335334469,1724119846298,-504.12705141,0.00016438,2]
[335334471,1724119846307,-510.16238229,0.00016438,2]
[335334473,1724119846316,-500.0,0.00016438,2]
[335334475,1724119846326,-500.0,0.00016438,2]
[335334477,1724119846335,-500.0,0.00016438,2]
[335334480,1724119846345,-613.58,0.00016438,2]
[335334483,1724119846355,-500.0,0.00016438,2]
[335334486,1724119846364,-500.0,0.00016438,2]
[335334490,1724119846374,-500.0,0.00016438,2]
[335334493,1724119846383,-500.0,0.00016438,2]
[335334496,1724119846392,-500.0,0.00016438,2]
[335334498,1724119846401,-500.0,0.00016438,2]
[335334501,1724119846411,-500.0,0.00016438,2]
[335334505,1724119846421,-500.0,0.00016438,2]
[335334509,1724119846431,-500.0,0.00016438,2]
[335334512,1724119846440,-500.0,0.00016438,2]
[335334515,1724119846449,-500.0,0.00016438,2]
[335334516,1724119846459,-500.0,0.00016438,2]
[335334518,1724119846468,-756.33,0.00016438,2]
[335334521,1724119846480,-500.0,0.00016438,2]
[335334523,1724119846491,-500.0,0.00016438,2]
[335334525,1724119846501,-502.60495464,0.00016438,2]
[335334527,1724119846511,-500.0,0.00016438,2]
[335334529,1724119846521,-520.32443881,0.00016438,2]
[335334532,1724119846531,-500.44561053,0.00016438,2]
[335334534,1724119846542,-503.6648564,0.00016438,2]
[335334536,1724119846553,-203.29995593,0.00016438,2]
[335334538,1724119846563,-500.92083009,0.00016438,2]
[335334540,1724119846573,-510.10115684,0.00016438,2]
[335334542,1724119846583,-500.0,0.00016438,2]
[335334544,1724119846593,-855.06,0.00016438,2]
[335334547,1724119846604,-500.0,0.00016438,2]
[335334549,1724119846617,-503.21898862,0.00016438,2]
[335334551,1724119846628,-500.0,0.00016438,2]
[335334553,1724119846639,-500.0,0.00016438,2]
[335334555,1724119846650,-500.0,0.00016438,2]
[335334558,1724119846659,-500.0,0.00016438,2]
[335334560,1724119846669,-609.46,0.00016438,2]
[335334562,1724119846678,-508.1366818,0.00016438,2]
[335334564,1724119846687,-335.4242483,0.00016438,2]
[335334566,1724119846697,-508.29553977,0.00016438,2]
[335334568,1724119846708,-500.0,0.00016438,2]
[335334570,1724119846719,-502.39840572,0.00016438,2]
[335334572,1724119846731,-500.0,0.00016438,2]
[335334574,1724119846742,-500.0,0.00016438,2]
[335334577,1724119846755,-200.0,0.00016473,2]
[335334579,1724119846766,-2521.76745231,0.00016527,2]
[335334581,1724119846778,-209.709946,0.00016549,2]
[335334584,1724119846789,-178.574009,0.00016549,2]
[335334586,1724119846800,-169.059762,0.00016549,2]
[335334588,1724119846812,-100000.0,0.00016602,2]
[335334590,1724119846821,-100000.0,0.00016602,2]
[335334592,1724119846831,-7625.03206641,0.00016627,2]
[335335125,1724121038364,-1503.69614752,9.414e-05,2]
[335335126,1724121038375,-192.02486573,9.8e-05,2]
[335335127,1724121038386,-196.86545827,9.8e-05,2]
[335335128,1724121038395,-24900.0,0.00011704,2]
[335335129,1724121038405,-534.5863966,0.00011904,2]
[335335130,1724121038418,-3439.84165516,0.00012356,2]
[335335131,1724121038427,-2130.7357503,0.000125,2]
[335335132,1724121038437,-1869.40092996,0.00012551,2]
[335335133,1724121038447,-2166.4854483,0.00012629,2]
[335335134,1724121038457,-91.53025188,0.000129,2]
[335335179,1724121041264,-3994.03790152,0.000129,2]
[335335180,1724121041275,-493.36312925,0.00012971,2]
[335335181,1724121041289,-817.60790766,0.00013051,2]
[335335182,1724121041299,-593.78729878,0.00013333,2]
[335335183,1724121041309,-284.6604202,0.00013699,2]
[335335184,1724121041318,-3000.0,0.00013699,2]
[335335185,1724121041329,-194.83065114,0.00013699,2]
[335335186,1724121041339,-4877.32160476,0.00014,2]
[335335187,1724121041349,-750.0,0.00014247,2]
[335335188,1724121041360,-1559.73478018,0.00015,2]
[335335189,1724121041371,-165.13941194,0.00015,2]
[335335190,1724121041381,-4085.56815338,0.00015725,2]
[335335191,1724121041391,-4146.57361913,0.0001588,2]
[335335192,1724121041400,-2000.0,0.0001589,2]
[335335193,1724121041410,-344.245563,0.0001589,2]
[335335194,1724121041421,-151.50865869,0.000159,2]
[335335195,1724121041431,-200.0,0.00015973,2]
[335335196,1724121041440,-200.0,0.00015973,2]
[335335197,1724121041450,-69908.903415,0.0001598,2]
[335335198,1724121041460,-384.34374321,0.00015989,2]
[335335199,1724121041469,-500.0,0.00015989,2]
[335335200,1724121041479,-500.0,0.00015989,2]
[335335201,1724121041488,-500.0,0.00015989,2]
[335335202,1724121041497,-500.0,0.00015989,2]
[335335203,1724121041507,-500.0,0.00015989,2]
[335335204,1724121041516,-542.72374663,0.00015989,2]
[335335205,1724121041525,-500.0,0.00015989,2]
[335335206,1724121041535,-500.0,0.00015989,2]
[335335207,1724121041544,-209726.710245,0.0001599,2]
[335335208,1724121041553,-2292.38703215,0.00015998,2]
[335335209,1724121041564,-18305.50283337,0.00015998,2]
[335335733,1724121969943,500.0005,0.00021,120]
[335335839,1724122238403,-2166.4854483,0.00012356,2]
[335335841,1724122238414,-154.76012181,0.00012516,2]
[335335843,1724122238426,-817.60790766,0.00012934,2]
[335335846,1724122238438,-187.86974768,0.00012989,2]
[335335848,1724122238449,-493.36312925,0.00012991,2]
[335335850,1724122238460,-2015.7991939,0.00013699,2]
[335335852,1724122238473,-194.83065114,0.00013699,2]
[335335855,1724122238485,-451.03114588,0.00013784,2]
[335335857,1724122238499,-6042.7,0.00013784,2]
[335335860,1724122238513,-18406.26885412,0.00013784,2]
[335335862,1724122238524,-3064.17611507,0.00014147,2]
[335335864,1724122238536,-750.0,0.00014247,2]
[335335866,1724122238548,-756.74724922,0.00014519,2]
[335335868,1724122238560,-155.1237061,0.00015634,2]
[335335871,1724122238571,-153.0,0.00015634,2]
[335335873,1724122238583,-153.0,0.00015634,2]
[335335875,1724122238595,-153.0,0.00015634,2]